[Event "Titled Tuesday Blitz May 03 Early 2022"]
[White "Zlatin, Alexander"]
[Black "Gatterer, Florian"]
[WhiteFideId "2810549"]
[BlackFideId "811688"]
[WhiteElo "2228"]
[BlackElo "2218"]
[Result "1-0"]
[Round "08"]
[TimeControl "180+1"]
[Date "2022.05.03"]
[WhiteClock "0:00:08"]
[BlackClock "0:00:05"]

1. d4 {[%clk 0:03:00]}  Nf6 {[%clk 0:02:58]} 2. Nc3 {[%clk 0:03:01]}  e6 {[%clk 0:02:59]} 3. Bf4 {[%clk 0:03:01]}  Be7 {[%clk 0:02:52]} 4. e3 {[%clk 0:03:01]}  O-O {[%clk 0:02:51]} 5. Nf3 {[%clk 0:03:01]}  b6 {[%clk 0:02:51]} 6. Bd3 {[%clk 0:03:01]}  Bb7 {[%clk 0:02:51]} 7. O-O {[%clk 0:03:02]}  c5 {[%clk 0:02:51]} 8. Nb5 {[%clk 0:02:48]}  d6 {[%clk 0:02:51]} 9. c4 {[%clk 0:02:41]}  a6 {[%clk 0:02:48]} 10. Nc3 {[%clk 0:02:41]}  Nbd7 {[%clk 0:02:46]} 11. h3 {[%clk 0:02:35]}  Re8 {[%clk 0:02:47]} 12. Rc1 {[%clk 0:02:32]}  Bf8 {[%clk 0:02:47]} 13. Re1 {[%clk 0:02:31]}  e5 {[%clk 0:02:47]} 14. dxe5 {[%clk 0:02:30]}  dxe5 {[%clk 0:02:47]} 15. Bg5 {[%clk 0:02:30]}  e4 {[%clk 0:02:40]} 16. Nxe4 {[%clk 0:02:16]}  Bxe4 {[%clk 0:02:39]} 17. Bxe4 {[%clk 0:02:14]}  Rxe4 {[%clk 0:02:36]} 18. Qc2 {[%clk 0:02:12]}  h6 {[%clk 0:02:33]} 19. Bf4 {[%clk 0:02:10]}  Qe8 {[%clk 0:02:25]} 20. Red1 {[%clk 0:02:10]}  Re6 {[%clk 0:02:18]} 21. Rd2 {[%clk 0:01:55]}  Ne4 {[%clk 0:02:17]} 22. Rdd1 {[%clk 0:01:53]}  Ndf6 {[%clk 0:02:15]} 23. Qb3 {[%clk 0:01:44]}  Rc6 {[%clk 0:02:09]} 24. Ne5 {[%clk 0:01:40]}  Re6 {[%clk 0:02:03]} 25. Nd3 {[%clk 0:01:40]}  b5 {[%clk 0:01:59]} 26. f3 {[%clk 0:01:34]}  Ng5 {[%clk 0:01:51]} 27. h4 {[%clk 0:01:31]}  Ngh7 {[%clk 0:01:46]} 28. cxb5 {[%clk 0:01:30]}  Qxb5 {[%clk 0:01:44]} 29. Qxb5 {[%clk 0:01:22]}  axb5 {[%clk 0:01:45]} 30. Nxc5 {[%clk 0:01:23]}  Bxc5 {[%clk 0:01:41]} 31. Rxc5 {[%clk 0:01:23]}  Ree8 {[%clk 0:01:31]} 32. a3 {[%clk 0:01:22]}  b4 {[%clk 0:01:27]} 33. axb4 {[%clk 0:01:21]}  g5 {[%clk 0:01:17]} 34. hxg5 {[%clk 0:01:18]}  hxg5 {[%clk 0:01:18]} 35. Bxg5 {[%clk 0:01:19]}  Nxg5 {[%clk 0:01:17]} 36. Rxg5+ {[%clk 0:01:17]}  Kf8 {[%clk 0:01:17]} 37. Rf5 {[%clk 0:01:17]}  Ke7 {[%clk 0:01:07]} 38. b5 {[%clk 0:01:15]}  Rab8 {[%clk 0:01:05]} 39. Rd4 {[%clk 0:01:10]}  Rb6 {[%clk 0:00:59]} 40. g4 {[%clk 0:00:56]}  Reb8 {[%clk 0:00:47]} 41. g5 {[%clk 0:00:55]}  Nd7 {[%clk 0:00:38]} 42. Re4+ {[%clk 0:00:52]}  Re6 {[%clk 0:00:37]} 43. Kf2 {[%clk 0:00:28]}  Rb6 {[%clk 0:00:34]} 44. b4 {[%clk 0:00:24]}  Rxe4 {[%clk 0:00:34]} 45. fxe4 {[%clk 0:00:24]}  Ke6 {[%clk 0:00:33]} 46. Kg3 {[%clk 0:00:23]}  Ke7 {[%clk 0:00:23]} 47. Kf4 {[%clk 0:00:23]}  Re6 {[%clk 0:00:22]} 48. Rd5 {[%clk 0:00:22]}  Nf8 {[%clk 0:00:20]} 49. Rc5 {[%clk 0:00:20]}  Ng6+ {[%clk 0:00:20]} 50. Kf3 {[%clk 0:00:20]}  Ne5+ {[%clk 0:00:19]} 51. Ke2 {[%clk 0:00:19]}  Nd7 {[%clk 0:00:19]} 52. Rd5 {[%clk 0:00:16]}  Nb6 {[%clk 0:00:18]} 53. Rc5 {[%clk 0:00:16]}  Nd7 {[%clk 0:00:17]} 54. Rc7 {[%clk 0:00:16]}  Kd6 {[%clk 0:00:15]} 55. b6 {[%clk 0:00:15]}  Nxb6 {[%clk 0:00:14]} 56. Rxf7 {[%clk 0:00:15]}  Rg6 {[%clk 0:00:09]} 57. Rf5 {[%clk 0:00:13]}  Nd7 {[%clk 0:00:08]} 58. Rd5+ {[%clk 0:00:10]}  Ke6 {[%clk 0:00:07]} 59. Kd3 {[%clk 0:00:10]}  Ne5+ {[%clk 0:00:07]} 60. Kd4 {[%clk 0:00:10]}  Nf3+ {[%clk 0:00:07]} 61. Kc5 {[%clk 0:00:10]}  Ne5 {[%clk 0:00:07]} 62. Rd6+ {[%clk 0:00:09]}  Kf7 {[%clk 0:00:05]} 63. b5 {[%clk 0:00:08]} 1-0


[Site "https://www.chess.com"]

[Event "Titled Tuesday Blitz May 03 Early 2022"]
[White "Aaditya Dhingra"]
[Black "Kohler, Aran"]
[WhiteFideId "25678191"]
[BlackFideId "1002856"]
[WhiteElo "1849"]
[BlackElo "2307"]
[Result "0-1"]
[Round "09"]
[TimeControl "180+1"]
[Date "2022.05.03"]
[WhiteClock "0:00:02"]
[BlackClock "0:00:04"]

1. Nf3 {[%clk 0:03:00]}  Nf6 {[%clk 0:02:55]} 2. c4 {[%clk 0:03:00]}  c6 {[%clk 0:02:52]} 3. g3 {[%clk 0:02:59]}  d5 {[%clk 0:02:52]} 4. Bg2 {[%clk 0:03:00]}  e6 {[%clk 0:02:52]} 5. O-O {[%clk 0:02:59]}  Nbd7 {[%clk 0:02:51]} 6. b3 {[%clk 0:03:00]}  Bd6 {[%clk 0:02:47]} 7. Bb2 {[%clk 0:03:00]}  O-O {[%clk 0:02:46]} 8. d3 {[%clk 0:03:00]}  Re8 {[%clk 0:02:44]} 9. Nbd2 {[%clk 0:03:00]}  e5 {[%clk 0:02:24]} 10. cxd5 {[%clk 0:02:58]}  cxd5 {[%clk 0:02:23]} 11. e4 {[%clk 0:02:59]}  d4 {[%clk 0:02:17]} 12. Nc4 {[%clk 0:02:56]}  Bf8 {[%clk 0:02:15]} 13. Ba3 {[%clk 0:02:52]}  b5 {[%clk 0:02:09]} 14. Bxf8 {[%clk 0:02:41]}  bxc4 {[%clk 0:02:09]} 15. Ba3 {[%clk 0:02:40]}  c3 {[%clk 0:02:09]} 16. Ne1 {[%clk 0:02:38]}  a5 {[%clk 0:02:03]} 17. f4 {[%clk 0:02:37]}  Qb6 {[%clk 0:01:56]} 18. Nf3 {[%clk 0:02:33]}  Ng4 {[%clk 0:01:54]} 19. Bc1 {[%clk 0:02:26]}  Ba6 {[%clk 0:01:37]} 20. h3 {[%clk 0:02:18]}  Ne3 {[%clk 0:01:32]} 21. Bxe3 {[%clk 0:02:16]}  dxe3 {[%clk 0:01:33]} 22. Qe2 {[%clk 0:02:13]}  exf4 {[%clk 0:01:25]} 23. gxf4 {[%clk 0:02:10]}  Nf6 {[%clk 0:01:18]} 24. Ne5 {[%clk 0:02:03]}  Rad8 {[%clk 0:01:12]} 25. Rfe1 {[%clk 0:02:01]}  Nd7 {[%clk 0:00:48]} 26. Nc4 {[%clk 0:01:50]}  Qh6 {[%clk 0:00:46]} 27. Qxe3 {[%clk 0:01:48]}  Bxc4 {[%clk 0:00:45]} 28. bxc4 {[%clk 0:01:41]}  Nb6 {[%clk 0:00:37]} 29. Rac1 {[%clk 0:01:35]}  Na4 {[%clk 0:00:37]} 30. d4 {[%clk 0:01:31]}  Qb6 {[%clk 0:00:33]} 31. c5 {[%clk 0:01:28]}  Qb4 {[%clk 0:00:33]} 32. c6 {[%clk 0:01:19]}  Rxd4 {[%clk 0:00:29]} 33. e5 {[%clk 0:01:17]}  Rxf4 {[%clk 0:00:21]} 34. c7 {[%clk 0:01:11]}  Rc4 {[%clk 0:00:21]} 35. e6 {[%clk 0:00:53]}  fxe6 {[%clk 0:00:20]} 36. Bd5 {[%clk 0:00:25]}  Rxc7 {[%clk 0:00:19]} 37. Bxe6+ {[%clk 0:00:24]}  Kh8 {[%clk 0:00:20]} 38. Qf2 {[%clk 0:00:19]}  Qc5 {[%clk 0:00:16]} 39. Bb3 {[%clk 0:00:17]}  Rxe1+ {[%clk 0:00:12]} 40. Rxe1 {[%clk 0:00:16]}  h6 {[%clk 0:00:06]} 41. Re8+ {[%clk 0:00:13]}  Kh7 {[%clk 0:00:06]} 42. Bc2+ {[%clk 0:00:05]}  g6 {[%clk 0:00:05]} 43. Bxa4 {[%clk 0:00:02]}  c2 {[%clk 0:00:04]} 0-1


[Site "https://www.chess.com"]

[Event "Titled Tuesday Blitz May 03 Early 2022"]
[White "Andreev, Eduard"]
[Black "Ismayil, Malak"]
[WhiteFideId "14103400"]
[BlackFideId "13412604"]
[WhiteElo "2382"]
[BlackElo "1879"]
[Result "1-0"]
[Round "09"]
[TimeControl "180+1"]
[Date "2022.05.03"]
[WhiteClock "0:00:57"]
[BlackClock "0:00:04"]

1. e4 {[%clk 0:03:00]}  e5 {[%clk 0:00:04]} 2. Nf3 {[%clk 0:02:58]}  Nc6 {[%clk 0:00:05]} 3. d4 {[%clk 0:02:57]}  exd4 {[%clk 0:00:05]} 4. Nxd4 {[%clk 0:02:57]}  Bc5 {[%clk 0:00:05]} 5. Nb3 {[%clk 0:02:57]}  Bb6 {[%clk 0:00:04]} 6. Nc3 {[%clk 0:02:56]}  d6 {[%clk 0:00:05]} 7. Qe2 {[%clk 0:02:56]}  Nf6 {[%clk 0:00:05]} 8. Be3 {[%clk 0:02:55]}  O-O {[%clk 0:00:06]} 9. O-O-O {[%clk 0:02:55]}  Be6 {[%clk 0:00:06]} 10. f3 {[%clk 0:02:54]}  Qe7 {[%clk 0:00:06]} 11. g4 {[%clk 0:02:53]}  Ne5 {[%clk 0:00:06]} 12. Kb1 {[%clk 0:02:44]}  Nxf3 {[%clk 0:00:06]} 13. Bxb6 {[%clk 0:02:34]}  Bxg4 {[%clk 0:00:05]} 14. Bf2 {[%clk 0:02:17]}  Ne5 {[%clk 0:00:04]} 15. Qd2 {[%clk 0:02:15]}  Bxd1 {[%clk 0:00:03]} 16. Qxd1 {[%clk 0:02:15]}  a5 {[%clk 0:00:04]} 17. Bh4 {[%clk 0:02:12]}  Qe6 {[%clk 0:00:04]} 18. Nd4 {[%clk 0:02:11]}  Qg4 {[%clk 0:00:03]} 19. Bxf6 {[%clk 0:02:10]}  Qxd1+ {[%clk 0:00:03]} 20. Nxd1 {[%clk 0:02:07]}  gxf6 {[%clk 0:00:04]} 21. Ne3 {[%clk 0:02:02]}  Ng6 {[%clk 0:00:04]} 22. Nd5 {[%clk 0:02:00]}  Rfe8 {[%clk 0:00:05]} 23. Nxf6+ {[%clk 0:01:59]}  Kg7 {[%clk 0:00:06]} 24. Nxe8+ {[%clk 0:01:59]}  Rxe8 {[%clk 0:00:06]} 25. Bd3 {[%clk 0:01:55]}  Kf6 {[%clk 0:00:06]} 26. Rf1+ {[%clk 0:01:53]}  Kg7 {[%clk 0:00:06]} 27. Nf5+ {[%clk 0:01:52]}  Kf8 {[%clk 0:00:07]} 28. h4 {[%clk 0:01:41]}  Ne5 {[%clk 0:00:06]} 29. h5 {[%clk 0:01:39]}  Re6 {[%clk 0:00:05]} 30. Kc1 {[%clk 0:01:32]}  Rf6 {[%clk 0:00:05]} 31. Rg1 {[%clk 0:01:29]}  Nf3 {[%clk 0:00:04]} 32. Rg3 {[%clk 0:01:26]}  Ne5 {[%clk 0:00:03]} 33. Kd2 {[%clk 0:01:25]}  c5 {[%clk 0:00:03]} 34. c4 {[%clk 0:01:13]}  Nc6 {[%clk 0:00:03]} 35. Bc2 {[%clk 0:01:02]}  Nd8 {[%clk 0:00:04]} 36. Rd3 {[%clk 0:00:59]}  Ne6 {[%clk 0:00:04]} 37. Rxd6 {[%clk 0:00:57]} 1-0


[Site "https://www.chess.com"]

[Event "Titled Tuesday Blitz May 03 Early 2022"]
[White "Andreikin, Dmitry"]
[Black "Lazavik, Denis"]
[WhiteFideId "4158814"]
[BlackFideId "13515110"]
[WhiteElo "2736"]
[BlackElo "2437"]
[Result "1-0"]
[Round "09"]
[TimeControl "180+1"]
[Date "2022.05.03"]
[WhiteClock "0:01:10"]
[BlackClock "0:00:17"]

1. d4 {[%clk 0:03:00]}  Nf6 {[%clk 0:02:58]} 2. c4 {[%clk 0:03:01]}  e6 {[%clk 0:02:59]} 3. Nf3 {[%clk 0:03:00]}  d5 {[%clk 0:02:59]} 4. g3 {[%clk 0:03:00]}  Be7 {[%clk 0:02:59]} 5. Bg2 {[%clk 0:03:00]}  O-O {[%clk 0:03:00]} 6. O-O {[%clk 0:02:59]}  dxc4 {[%clk 0:03:00]} 7. Qc2 {[%clk 0:02:54]}  a6 {[%clk 0:03:00]} 8. a4 {[%clk 0:02:54]}  Bd7 {[%clk 0:02:59]} 9. Qxc4 {[%clk 0:02:53]}  Bc6 {[%clk 0:02:59]} 10. Bf4 {[%clk 0:02:52]}  Bd6 {[%clk 0:02:59]} 11. Qc1 {[%clk 0:02:52]}  a5 {[%clk 0:02:58]} 12. Nc3 {[%clk 0:02:50]}  Na6 {[%clk 0:02:58]} 13. Bg5 {[%clk 0:02:49]}  Bxf3 {[%clk 0:02:38]} 14. Bxf3 {[%clk 0:02:48]}  c6 {[%clk 0:02:39]} 15. Rd1 {[%clk 0:02:41]}  Be7 {[%clk 0:02:34]} 16. e4 {[%clk 0:02:32]}  Nb4 {[%clk 0:02:33]} 17. h4 {[%clk 0:02:31]}  Nd7 {[%clk 0:02:18]} 18. e5 {[%clk 0:02:28]}  f6 {[%clk 0:01:36]} 19. exf6 {[%clk 0:02:13]}  Nxf6 {[%clk 0:01:33]} 20. Qe3 {[%clk 0:02:10]}  Qd7 {[%clk 0:01:32]} 21. Rd2 {[%clk 0:02:06]}  Nfd5 {[%clk 0:01:07]} 22. Nxd5 {[%clk 0:01:58]}  Nxd5 {[%clk 0:01:07]} 23. Bxd5 {[%clk 0:01:57]}  cxd5 {[%clk 0:01:06]} 24. Bxe7 {[%clk 0:01:47]}  Qxe7 {[%clk 0:01:06]} 25. Rc1 {[%clk 0:01:45]}  Rac8 {[%clk 0:01:00]} 26. Rdc2 {[%clk 0:01:45]}  Rxc2 {[%clk 0:01:00]} 27. Rxc2 {[%clk 0:01:46]}  h6 {[%clk 0:00:55]} 28. Rc5 {[%clk 0:01:43]}  Qd6 {[%clk 0:00:40]} 29. Rxa5 {[%clk 0:01:43]}  Re8 {[%clk 0:00:39]} 30. Rb5 {[%clk 0:01:39]}  e5 {[%clk 0:00:33]} 31. Rxb7 {[%clk 0:01:26]}  e4 {[%clk 0:00:27]} 32. Qf4 {[%clk 0:01:21]}  Qe6 {[%clk 0:00:28]} 33. a5 {[%clk 0:01:17]}  e3 {[%clk 0:00:17]} 34. Qxe3 {[%clk 0:01:13]}  Qc8 {[%clk 0:00:17]} 35. Re7 {[%clk 0:01:10]} 1-0


[Site "https://www.chess.com"]

[Event "Titled Tuesday Blitz May 03 Early 2022"]
[White "Arabidze, Meri"]
[Black "Zlatin, Alexander"]
[WhiteFideId "13604040"]
[BlackFideId "2810549"]
[WhiteElo "2335"]
[BlackElo "2228"]
[Result "1-0"]
[Round "09"]
[TimeControl "180+1"]
[Date "2022.05.03"]
[WhiteClock "0:00:16"]
[BlackClock "0:00:04"]

1. Nf3 {[%clk 0:02:53]}  Nf6 {[%clk 0:02:59]} 2. b3 {[%clk 0:02:54]}  d5 {[%clk 0:03:00]} 3. Bb2 {[%clk 0:02:54]}  e6 {[%clk 0:03:01]} 4. g3 {[%clk 0:02:54]}  Be7 {[%clk 0:03:01]} 5. Bg2 {[%clk 0:02:55]}  O-O {[%clk 0:03:02]} 6. O-O {[%clk 0:02:55]}  c5 {[%clk 0:03:02]} 7. c4 {[%clk 0:02:55]}  Nc6 {[%clk 0:03:03]} 8. cxd5 {[%clk 0:02:55]}  exd5 {[%clk 0:03:04]} 9. d4 {[%clk 0:02:55]}  Ne4 {[%clk 0:03:01]} 10. dxc5 {[%clk 0:02:54]}  Bxc5 {[%clk 0:02:58]} 11. e3 {[%clk 0:02:54]}  Be6 {[%clk 0:02:56]} 12. Nc3 {[%clk 0:02:54]}  Nxc3 {[%clk 0:02:55]} 13. Bxc3 {[%clk 0:02:54]}  Qe7 {[%clk 0:02:55]} 14. Nd4 {[%clk 0:02:50]}  Nxd4 {[%clk 0:02:43]} 15. Bxd4 {[%clk 0:02:51]}  Rac8 {[%clk 0:02:40]} 16. Rc1 {[%clk 0:02:49]}  b6 {[%clk 0:02:39]} 17. Qd3 {[%clk 0:02:44]}  Rfd8 {[%clk 0:02:37]} 18. h4 {[%clk 0:02:43]}  h6 {[%clk 0:02:35]} 19. Rfd1 {[%clk 0:02:41]}  Ba3 {[%clk 0:02:24]} 20. Rxc8 {[%clk 0:02:40]}  Rxc8 {[%clk 0:02:25]} 21. Qe2 {[%clk 0:02:17]}  Qc7 {[%clk 0:01:45]} 22. Qh5 {[%clk 0:02:07]}  Qc2 {[%clk 0:01:41]} 23. Rf1 {[%clk 0:02:07]}  Rd8 {[%clk 0:01:32]} 24. Qe5 {[%clk 0:02:03]}  Bf8 {[%clk 0:01:28]} 25. f4 {[%clk 0:01:57]}  Qf5 {[%clk 0:01:22]} 26. Qxf5 {[%clk 0:01:48]}  Bxf5 {[%clk 0:01:22]} 27. Rc1 {[%clk 0:01:49]}  Bd6 {[%clk 0:00:56]} 28. Bf3 {[%clk 0:01:47]}  Be6 {[%clk 0:00:49]} 29. Kf2 {[%clk 0:01:46]}  f5 {[%clk 0:00:48]} 30. h5 {[%clk 0:01:40]}  Kf7 {[%clk 0:00:47]} 31. a4 {[%clk 0:01:37]}  Rd7 {[%clk 0:00:45]} 32. Rc6 {[%clk 0:01:35]}  Be7 {[%clk 0:00:38]} 33. Be2 {[%clk 0:01:25]}  Rd6 {[%clk 0:00:35]} 34. Rc1 {[%clk 0:01:24]}  Rd8 {[%clk 0:00:31]} 35. Ba6 {[%clk 0:01:18]}  Bd6 {[%clk 0:00:28]} 36. Kf3 {[%clk 0:01:06]}  Kg8 {[%clk 0:00:21]} 37. Be2 {[%clk 0:01:04]}  Kf7 {[%clk 0:00:20]} 38. Ra1 {[%clk 0:00:56]}  Bb4 {[%clk 0:00:17]} 39. Rc1 {[%clk 0:00:45]}  Rc8 {[%clk 0:00:17]} 40. Rxc8 {[%clk 0:00:36]}  Bxc8 {[%clk 0:00:18]} 41. Be5 {[%clk 0:00:36]}  a5 {[%clk 0:00:12]} 42. Bb5 {[%clk 0:00:35]}  Bc5 {[%clk 0:00:12]} 43. Bc6 {[%clk 0:00:33]}  Be6 {[%clk 0:00:12]} 44. Ke2 {[%clk 0:00:32]}  Kg8 {[%clk 0:00:09]} 45. Kd3 {[%clk 0:00:30]}  Bf7 {[%clk 0:00:09]} 46. Bd4 {[%clk 0:00:29]}  Bxh5 {[%clk 0:00:08]} 47. Bxd5+ {[%clk 0:00:29]}  Kf8 {[%clk 0:00:03]} 48. Bxc5+ {[%clk 0:00:28]}  bxc5 {[%clk 0:00:03]} 49. Kc4 {[%clk 0:00:29]}  Ke7 {[%clk 0:00:03]} 50. Kxc5 {[%clk 0:00:29]}  Be2 {[%clk 0:00:03]} 51. Kb6 {[%clk 0:00:28]}  Kd6 {[%clk 0:00:04]} 52. Bc4 {[%clk 0:00:27]}  Bf3 {[%clk 0:00:03]} 53. Kxa5 {[%clk 0:00:27]}  g5 {[%clk 0:00:03]} 54. Kb6 {[%clk 0:00:25]}  g4 {[%clk 0:00:03]} 55. Bf7 {[%clk 0:00:22]}  Ke7 {[%clk 0:00:02]} 56. Bh5 {[%clk 0:00:22]}  Bd1 {[%clk 0:00:02]} 57. a5 {[%clk 0:00:21]}  Bxb3 {[%clk 0:00:01]} 58. a6 {[%clk 0:00:21]}  Bd5 {[%clk 0:00:02]} 59. a7 {[%clk 0:00:20]}  Kd8 {[%clk 0:00:02]} 60. Bg6 {[%clk 0:00:19]}  Be4 {[%clk 0:00:02]} 61. Bxf5 {[%clk 0:00:19]}  Ba8 {[%clk 0:00:02]} 62. Bxg4 {[%clk 0:00:19]}  Ke7 {[%clk 0:00:02]} 63. Bf5 {[%clk 0:00:19]}  Kd8 {[%clk 0:00:03]} 64. e4 {[%clk 0:00:19]}  Ke7 {[%clk 0:00:03]} 65. e5 {[%clk 0:00:19]}  Kd8 {[%clk 0:00:03]} 66. Bg4 {[%clk 0:00:19]}  Ke7 {[%clk 0:00:04]} 67. Be2 {[%clk 0:00:19]}  Kd8 {[%clk 0:00:04]} 68. Bb5 {[%clk 0:00:19]}  h5 {[%clk 0:00:02]} 69. Bc6 {[%clk 0:00:19]}  h4 {[%clk 0:00:03]} 70. gxh4 {[%clk 0:00:19]}  Ke7 {[%clk 0:00:03]} 71. Bxa8 {[%clk 0:00:18]}  Kd7 {[%clk 0:00:04]} 72. Bc6+ {[%clk 0:00:18]}  Ke6 {[%clk 0:00:04]} 73. a8=Q {[%clk 0:00:18]}  Kf5 {[%clk 0:00:05]} 74. e6 {[%clk 0:00:19]}  Kf6 {[%clk 0:00:05]} 75. e7 {[%clk 0:00:18]}  Kg6 {[%clk 0:00:04]} 76. e8=Q+ {[%clk 0:00:18]}  Kf5 {[%clk 0:00:04]} 77. Qe5+ {[%clk 0:00:17]}  Kg4 {[%clk 0:00:05]} 78. f5 {[%clk 0:00:17]}  Kh5 {[%clk 0:00:04]} 79. Qah8+ {[%clk 0:00:16]}  Kg4 {[%clk 0:00:04]} 80. Qhg7+ {[%clk 0:00:16]}  Kh3 {[%clk 0:00:04]} 81. Qgg3# {[%clk 0:00:16]} 1-0


[Site "https://www.chess.com"]

[Event "Titled Tuesday Blitz May 03 Early 2022"]
[White "Araujo Filho, Luiz Antonio Coel"]
[Black "Fernandez Siles, Luis"]
[WhiteFideId "2130661"]
[BlackFideId "2209420"]
[WhiteElo "2295"]
[BlackElo "2212"]
[Result "1-0"]
[Round "09"]
[TimeControl "180+1"]
[Date "2022.05.03"]
[WhiteClock "0:00:02"]
[BlackClock "0:00:16"]

1. d4 {[%clk 0:03:00]}  Nf6 {[%clk 0:02:59]} 2. Nf3 {[%clk 0:02:59]}  g6 {[%clk 0:02:59]} 3. c4 {[%clk 0:02:59]}  Bg7 {[%clk 0:02:59]} 4. Nc3 {[%clk 0:02:59]}  O-O {[%clk 0:02:59]} 5. e4 {[%clk 0:03:00]}  d6 {[%clk 0:02:59]} 6. Be2 {[%clk 0:03:00]}  c5 {[%clk 0:03:00]} 7. d5 {[%clk 0:03:00]}  e6 {[%clk 0:02:58]} 8. O-O {[%clk 0:03:01]}  exd5 {[%clk 0:02:58]} 9. exd5 {[%clk 0:03:01]}  Bg4 {[%clk 0:02:56]} 10. h3 {[%clk 0:02:59]}  Bxf3 {[%clk 0:02:54]} 11. Bxf3 {[%clk 0:03:00]}  a6 {[%clk 0:02:54]} 12. Re1 {[%clk 0:02:58]}  Nbd7 {[%clk 0:02:53]} 13. Bg5 {[%clk 0:02:57]}  h6 {[%clk 0:02:53]} 14. Bh4 {[%clk 0:02:57]}  g5 {[%clk 0:02:52]} 15. Bg3 {[%clk 0:02:57]}  Ne8 {[%clk 0:02:52]} 16. Qc2 {[%clk 0:02:30]}  Ne5 {[%clk 0:02:48]} 17. Be2 {[%clk 0:02:26]}  f5 {[%clk 0:02:30]} 18. Bxe5 {[%clk 0:02:14]}  Bxe5 {[%clk 0:02:29]} 19. Bd3 {[%clk 0:02:14]}  Qf6 {[%clk 0:02:21]} 20. Na4 {[%clk 0:02:10]}  Ng7 {[%clk 0:02:13]} 21. Rab1 {[%clk 0:02:02]}  Rf7 {[%clk 0:02:08]} 22. b4 {[%clk 0:02:01]}  cxb4 {[%clk 0:01:56]} 23. Rxb4 {[%clk 0:01:59]}  g4 {[%clk 0:01:44]} 24. hxg4 {[%clk 0:01:29]}  fxg4 {[%clk 0:01:44]} 25. c5 {[%clk 0:01:29]}  Bd4 {[%clk 0:01:17]} 26. Rxd4 {[%clk 0:00:52]}  Qxd4 {[%clk 0:01:16]} 27. Rd1 {[%clk 0:00:53]}  Qf6 {[%clk 0:01:02]} 28. c6 {[%clk 0:00:50]}  bxc6 {[%clk 0:01:00]} 29. dxc6 {[%clk 0:00:48]}  Kh8 {[%clk 0:01:00]} 30. Nb6 {[%clk 0:00:35]}  Raf8 {[%clk 0:00:39]} 31. Nd7 {[%clk 0:00:32]}  Rxd7 {[%clk 0:00:33]} 32. cxd7 {[%clk 0:00:31]}  g3 {[%clk 0:00:29]} 33. fxg3 {[%clk 0:00:26]}  Rd8 {[%clk 0:00:22]} 34. Qc7 {[%clk 0:00:19]}  Ne6 {[%clk 0:00:18]} 35. Qc8 {[%clk 0:00:17]}  Qe7 {[%clk 0:00:17]} 36. Bf5 {[%clk 0:00:11]}  Ng7 {[%clk 0:00:17]} 37. Bg4 {[%clk 0:00:09]}  h5 {[%clk 0:00:17]} 38. Bh3 {[%clk 0:00:03]}  Kh7 {[%clk 0:00:18]} 39. Re1 {[%clk 0:00:01]}  Qe3+ {[%clk 0:00:19]} 40. Rxe3 {[%clk 0:00:01]}  Ne6 {[%clk 0:00:17]} 41. Rxe6 {[%clk 0:00:01]}  Rxc8 {[%clk 0:00:16]} 42. dxc8=Q {[%clk 0:00:02]} 1-0


[Site "https://www.chess.com"]